fUSD/lending_fUSD_20241121
["ID","MTS","AMOUNT","RATE_DAILY","PERIOD"]
[342868758,1732189881728,-1401.14,0.00041643,18]
[342868759,1732189881737,-500.0,0.00041643,18]
[342868760,1732189881747,-1439.68,0.00041643,18]
[342868761,1732189881757,-500.0,0.00041643,18]
[342868762,1732189881767,-1578.75,0.00041643,18]
[342868763,1732189881777,-763.56,0.00041643,18]
[342868764,1732189881786,-500.0,0.00041643,18]
[342868765,1732189881796,-801.82,0.00041643,18]
[342868766,1732189881806,-500.0,0.00041643,18]
[342868767,1732189881816,-1361.49,0.00041643,18]
[342868768,1732189881825,-1182.62,0.00041643,18]
[342868769,1732189881835,-500.0,0.00041643,18]
[342868770,1732189881845,-500.0,0.00041643,18]
[342868771,1732189881854,-500.0,0.00041643,18]
[342868772,1732189881864,-1752.72918,0.00041643,14]
[342868773,1732189881874,-500.0,0.00041643,18]
[342868774,1732189881883,-912.961485,0.00041643,14]
[342868775,1732189881892,-612.15,0.00041643,18]
[342868776,1732189881902,-500.0,0.00041643,18]
[342868777,1732189881912,-912.961485,0.00041643,14]
[342868778,1732189881923,-500.0,0.00041643,18]
[342868779,1732189881936,-1354.02,0.00041643,18]
[342868780,1732189881946,-912.961485,0.00041643,14]
[342868781,1732189881956,-500.0,0.00041643,18]
[342868782,1732189881966,-649.76,0.00041643,18]
[342868783,1732189881977,-1306.87,0.00041643,18]
[342868784,1732189881987,-844.16,0.00041643,18]
[342868785,1732189881996,-2926.14,0.00041643,18]
[342868786,1732189882007,-500.0,0.00041643,18]
[342868787,1732189882018,-5284.91,0.00041643,18]
[342868788,1732189882029,-1752.729181,0.00041643,14]
[342868789,1732189882038,-500.0,0.00041643,18]
[342868790,1732189882048,-912.961485,0.00041643,14]
[342868791,1732189882058,-500.0,0.00041643,18]
[342868792,1732189882068,-912.961485,0.00041643,14]
[342868793,1732189882078,-34121.91,0.00041643,18]
[342868794,1732189882088,-699.9,0.00041643,18]
[342868795,1732189882098,-1595.91,0.00041643,18]
[342868796,1732189882107,-1071.22,0.00041643,18]
[342868797,1732189882117,-518.44,0.00041643,18]
[342868798,1732189882127,-500.0,0.00041643,18]
[342868799,1732189882140,-500.0,0.00041643,18]
[342868800,1732189882161,-4003.3,0.00041643,18]
[342868801,1732189882172,-912.961485,0.00041643,14]
[342868802,1732189882183,-1341.46,0.00041643,18]
[342868803,1732189882193,-1733.74,0.00041643,18]
[342868804,1732189882203,-371.05107279,0.00041643,18]
[342868805,1732189882216,-791.93,0.00041643,18]
[342868806,1732189882226,-2557.99,0.00041643,18]
[342868807,1732189882237,-1249.9,0.00041643,18]
[342868808,1732189882247,-500.0,0.00041643,18]
[342868809,1732189882258,-1731.38,0.00041643,18]
[342868810,1732189882268,-529.13,0.00041643,18]
[342868811,1732189882278,-519.33,0.00041643,18]
[342868812,1732189882288,-1362.79,0.00041643,18]
[342868813,1732189882299,-500.0,0.00041643,18]
[342868814,1732189882309,-500.0,0.00041643,18]
[342868815,1732189882319,-1241.29,0.00041643,18]
[342868816,1732189882329,-2915.23,0.00041643,18]
[342868817,1732189882339,-3244.13,0.00041643,18]
[342868818,1732189882350,-500.0,0.00041643,18]
[342868819,1732189882359,-2554.53,0.00041643,18]
[342868820,1732189882369,-582.9,0.00041643,18]
[342868821,1732189882379,-550.08,0.00041643,18]
[342868822,1732189882390,-500.0,0.00041643,18]
[342868823,1732189882400,-500.0,0.00041643,18]
[342868824,1732189882412,-651.52,0.00041643,18]
[342868825,1732189882425,-698.96,0.00041643,18]
[342868826,1732189882435,-3881.63,0.00041643,18]
[342868827,1732189882445,-500.0,0.00041643,18]
[342868828,1732189882455,-1582.74,0.00041643,18]
[342868829,1732189882465,-500.0,0.00041643,18]
[342868830,1732189882475,-1637.99,0.00041643,120]
[342868831,1732189882485,-1871.1,0.00041643,18]
[342868832,1732189882494,-500.0,0.00041643,18]
[342868833,1732189882504,-1098.21,0.00041643,18]
[342868834,1732189882514,-2484.53,0.00041643,18]
[342868835,1732189882524,-2436.73,0.00041643,18]
[342868836,1732189882534,-500.0,0.00041643,18]
[342868837,1732189882544,-500.0,0.00041643,18]
[342868838,1732189882553,-1567.85,0.00041643,18]
[342868839,1732189882563,-1768.68,0.00041643,18]
[342868840,1732189882573,-1447.08,0.00041643,18]
[342868841,1732189882582,-500.0,0.00041643,18]
[342868842,1732189882592,-572.44,0.00041643,18]
[342868843,1732189882602,-4586.56,0.00041643,18]
[342868844,1732189882612,-1620.15,0.00041643,18]
[342868845,1732189882622,-500.0,0.00041643,18]
[342868846,1732189882632,-619.11,0.00041643,18]
[342868847,1732189882642,-500.0,0.00041643,18]
[342868848,1732189882652,-500.0,0.00041643,18]
[342868849,1732189882662,-513.87,0.00041643,18]
[342868850,1732189882673,-500.0,0.00041643,18]
[342868851,1732189882683,-4020.32,0.00041643,18]
[342868852,1732189882694,-500.0,0.00041643,18]
[342868853,1732189882704,-500.0,0.00041643,18]
[342868854,1732189882714,-1565.83,0.00041643,18]
[342868855,1732189882724,-593.97,0.00041643,18]
[342868856,1732189882735,-596.12,0.00041643,18]
[342868857,1732189882745,-4712.74,0.00041643,18]
[342868858,1732189882756,-500.0,0.00041643,18]
[342868859,1732189882766,-1148.91,0.00041643,18]
[342868860,1732189882776,-2032.25,0.00041643,18]
[342868861,1732189882786,-500.0,0.00041643,18]
[342868862,1732189882797,-544.54,0.00041643,18]
[342868863,1732189882807,-500.0,0.00041643,18]
[342868864,1732189882817,-613.43,0.00041643,18]
[342868865,1732189882829,-500.0,0.00041643,18]
[342868866,1732189882843,-500.0,0.00041643,18]
[342868867,1732189882858,-500.0,0.00041643,18]
[342868868,1732189882868,-500.0,0.00041643,18]
[342868869,1732189882878,-2327.69,0.00041643,18]
[342868870,1732189882888,-7872.71,0.00041643,18]
[342868871,1732189882897,-500.0,0.00041643,18]
[342868872,1732189882907,-500.0,0.00041643,18]
[342868873,1732189882918,-3018.48,0.00041643,18]
[342868874,1732189882929,-604.94230062,0.00041643,18]
[342868875,1732189882941,-500.0,0.00041643,18]
[342868876,1732189882950,-500.0,0.00041643,18]
[342868877,1732189882960,-564.49,0.00041643,18]
[342868878,1732189882971,-5196.4,0.00041643,18]
[342868879,1732189882983,-1276.87,0.00041643,18]
[342868880,1732189882993,-7206.61,0.00041643,18]
[342868881,1732189883006,-712.38,0.00041643,18]
[342868882,1732189883017,-500.0,0.00041643,18]
[342868883,1732189883027,-500.0,0.00041643,18]
[342868884,1732189883037,-1681.4,0.00041643,18]
[342868885,1732189883048,-500.0,0.00041643,18]
[342868886,1732189883058,-3627.02,0.00041643,18]
[342868887,1732189883068,-500.0,0.00041643,18]
[342868888,1732189883078,-1660.62,0.00041643,18]
[342868889,1732189883087,-500.0,0.00041643,18]
[342868890,1732189883097,-1806.44,0.00041643,18]
[342868891,1732189883107,-500.0,0.00041643,18]
[342868892,1732189883117,-500.0,0.00041643,18]
[342868893,1732189883126,-500.0,0.00041643,18]
[342868894,1732189883136,-11747.3,0.00041643,18]
[342868895,1732189883146,-500.0,0.00041643,18]
[342868896,1732189883156,-1018.58,0.00041643,18]
[342868897,1732189883167,-533.28,0.00041643,18]
[342868898,1732189883176,-500.0,0.00041643,18]
[342868899,1732189883186,-927.21,0.00041643,18]
[342868900,1732189883197,-345.64126242,0.00041643,18]
[342868901,1732189883208,-1442.66,0.00041643,18]
[342868902,1732189883219,-931.25,0.00041643,18]
[342868903,1732189883230,-500.0,0.00041643,18]
[342868904,1732189883240,-500.0,0.00041643,18]
[342868905,1732189883251,-1758.3,0.00041643,18]
[342868906,1732189883261,-1417.72,0.00041643,18]
[342868907,1732189883272,-2319.62,0.00041643,18]
[342868908,1732189883282,-11933.23,0.00041643,18]
[342868909,1732189883293,-500.0,0.00041643,18]
[342868910,1732189883303,-143.73367954,0.00041643,18]
[342868911,1732189883378,-389.01632046,0.00041643,18]
[342868912,1732189883389,-766.76,0.00041643,18]
[342868913,1732189883400,-930.37,0.00041643,18]
[342868914,1732189883410,-500.0,0.00041643,18]
[342868915,1732189883420,-141.21567564,0.00041643,18]
[342868916,1732189883442,-358.78432436,0.00041643,18]
[342868917,1732189883453,-1228.47,0.00041643,7]
[342868918,1732189883463,-500.0,0.00041643,18]
[342868919,1732189883474,-212.7456733,0.00041643,18]
[342868920,1732189883486,-307.8334,0.00041643,18]
[342868921,1732189883499,-179.4209267,0.00041643,18]
[342868922,1732189883509,-317.44000047,0.00041643,18]
[342868923,1732189883521,-679.84999953,0.00041643,18]
[342868924,1732189883531,-500.0,0.00041643,18]
[342868925,1732189883541,-1013.23,0.00041643,18]
[342868926,1732189883552,-500.0,0.00041643,18]
[342868927,1732189883562,-675.24,0.00041643,18]
[342868928,1732189883573,-500.0,0.00041643,18]
[342868929,1732189883583,-4020.28,0.00041643,18]
[342868930,1732189883593,-500.0,0.00041643,18]
[342868931,1732189883604,-500.0,0.00041643,18]
[342868932,1732189883614,-500.0,0.00041643,18]
[342868933,1732189883625,-13202.45,0.00041643,18]
[342868934,1732189883636,-500.0,0.00041643,18]
[342868935,1732189883647,-1186.15,0.00041643,18]
[342868936,1732189883658,-575.00055179,0.00041643,18]
[342868937,1732189883671,-545.72,0.00041643,18]
[342868938,1732189883681,-946.9,0.00041643,18]
[342868939,1732189883692,-2666.59,0.00041643,18]
[342868940,1732189883702,-719.93,0.00041643,18]
[342868941,1732189883714,-373.74316737,0.00041643,18]
[342868942,1732189883724,-500.0,0.00041643,18]
[342868943,1732189883735,-877.93,0.00041643,18]
[342868944,1732189883745,-1376.18,0.00041643,18]
[342868945,1732189883755,-500.0,0.00041643,18]
[342868946,1732189883766,-500.0,0.00041643,18]
[342868947,1732189883776,-500.0,0.00041643,18]
[342868948,1732189883786,-500.0,0.00041643,18]
[342868949,1732189883796,-500.0,0.00041643,18]
[342868950,1732189883807,-3512.18893246,0.00041643,18]
[342868951,1732189885132,-298.59,0.00041095,18]
[342868952,1732189885143,-280.87,0.00041095,18]
[342868953,1732189885152,-500.0,0.00041095,18]
[342868954,1732189885161,-500.0,0.00041095,18]
[342868955,1732189885171,-671.769835,0.00041268,3]
[342868956,1732189885181,-909.33837036,0.00041268,3]
[342868957,1732189885193,-445.82500683,0.00041268,3]
[342868958,1732189885204,-1950.000006,0.00041268,3]
[342868959,1732189885214,-881.08675534,0.00041268,3]
[342868960,1732189885229,-4832.89043338,0.00041268,3]
[342868961,1732189885240,-521.58367401,0.00041268,3]
[342868962,1732189885252,-11815.88494782,0.00041268,3]
[342868963,1732189885812,-500.0,0.00041095,18]
[342868964,1732189885822,-500.0,0.00041095,18]
[342868965,1732189885831,-20770.640045,0.00041268,3]
[342868966,1732189885842,-119956.29732779,0.00041268,3]
[342868967,1732189886108,-3404.52334347,0.00041268,3]
[342868968,1732189886119,-5382.296625,0.00041268,3]
[342868969,1732189886130,-7399.88822,0.00041268,3]
[342868970,1732189886143,-37150.52375711,0.00041268,3]
[342868971,1732189886154,-537.13002854,0.00041268,3]
[342868972,1732189886175,-57263.58272387,0.00041268,3]
[342868973,1732189886452,-6601.28921793,0.00041268,3]
[342868974,1732189886466,-8355.461751,0.00041268,3]
[342868975,1732189886480,-35108.53587434,0.00041268,3]
[342868976,1732189886492,-3322.51302097,0.00041268,3]
[342868977,1732189886502,-31846.35323261,0.00041268,3]
[342868978,1732189887726,-1672.9107,0.00041268,3]
[342868979,1732189887737,-195734.74543923,0.00041268,3]
[342868980,1732189887747,-500.0,0.00041279,120]
[342868981,1732189887757,-500.0,0.00041279,120]
[342868982,1732189887766,-500.0,0.00041368,120]
[342868983,1732189887776,-500.0,0.00041368,120]
[342868984,1732189887786,-500.0,0.00041368,120]
[342868985,1732189887796,-500.0,0.00041368,120]
[342868986,1732189887806,-500.0,0.00041368,120]
[342868987,1732189887816,-500.0,0.00041368,120]
[342868988,1732189887825,-500.0,0.00041368,120]
[342868989,1732189887835,-500.0,0.00041368,120]
[342868990,1732189887844,-579.46,0.00041369,18]
[342868991,1732189887854,-500.0,0.00041369,18]
[342868992,1732189887864,-553.85527459,0.00041369,18]
[342868993,1732189887873,-500.0,0.00041369,18]
[342868994,1732189887882,-500.0,0.00041369,18]
[342868995,1732189887892,-500.0,0.00041369,18]
[342868996,1732189887901,-1093.0,0.00041603,2]
[342868997,1732189887910,-500.0,0.00041616,120]
[342868998,1732189887920,-500.0,0.00041616,120]
[342868999,1732189887935,-500.0,0.00041616,120]
[342869000,1732189887945,-447.29455312,0.00041616,120]
[342869001,1732189887954,-10956.25106754,0.00041643,18]
[342869002,1732189887963,-5787.83,0.00041643,18]
[342869003,1732189887974,-500.0,0.00041643,18]
[342869004,1732189887983,-500.0,0.00041643,18]
[342869005,1732189887992,-697.07,0.00041643,18]
[342869006,1732189888002,-805.41,0.00041643,18]
[342869007,1732189888014,-500.0,0.00041643,18]
[342869008,1732189888024,-3418.39,0.00041643,18]
[342869009,1732189888033,-3873.91,0.00041643,18]
[342869010,1732189888042,-500.0,0.00041643,18]
[342869011,1732189888052,-500.0,0.00041643,18]
[342869012,1732189888062,-500.0,0.00041643,18]
[342869013,1732189888072,-3451.68,0.00041643,18]
[342869014,1732189888082,-4908.1,0.00041643,18]
[342869015,1732189888091,-500.0,0.00041643,18]
[342869016,1732189888100,-500.0,0.00041643,18]
[342869017,1732189888110,-500.0,0.00041643,18]
[342869018,1732189888120,-500.0,0.00041643,18]
[342869019,1732189888130,-500.0,0.00041643,18]
[342869020,1732189888140,-3954.94,0.00041643,18]
[342869021,1732189888149,-2609.31,0.00041643,18]
[342869022,1732189888159,-1172.56,0.00041643,18]
[342869023,1732189888169,-500.0,0.00041643,18]
[342869024,1732189888182,-810.04,0.00041643,18]
[342869025,1732189888192,-605.35845503,0.00041643,18]
[342869026,1732189888202,-1027.22,0.00041643,18]
[342869027,1732189888212,-500.0,0.00041643,18]
[342869028,1732189888221,-500.0,0.00041643,18]
[342869029,1732189888230,-500.0,0.00041643,18]
[342869030,1732189888241,-500.0,0.00041643,18]
[342869031,1732189888251,-2504.88,0.00041643,18]
[342869032,1732189888261,-603.75,0.00041643,18]
[342869033,1732189888270,-1764.73,0.00041643,18]
[342869034,1732189888280,-3735.74,0.00041643,18]
[342869035,1732189888290,-748.77,0.00041643,18]
[342869036,1732189888300,-1623.0,0.00041643,18]
[342869037,1732189888309,-1038.75,0.00041643,18]
[342869038,1732189888319,-2696.16,0.00041643,18]
[342869039,1732189888329,-3232.89,0.00041643,18]
[342869040,1732189888339,-334.95318323,0.00041643,18]
[342869041,1732189888348,-555.02,0.00041643,18]
[342869042,1732189888359,-500.0,0.00041643,18]
[342869043,1732189888369,-579.46,0.00041643,18]
[342869044,1732189888379,-500.0,0.00041643,18]
[342869045,1732189888388,-500.0,0.00041643,18]
[342869046,1732189888398,-500.0,0.00041643,18]
[342869047,1732189888408,-500.0,0.00041643,18]
[342869048,1732189888418,-239.73587987,0.00041643,30]
[342869049,1732189888430,-292.98,0.00041644,30]
[342869050,1732189888440,-150.0,0.00041644,30]
[342869051,1732189888450,-150.0,0.00041644,30]
[342869052,1732189888460,-957.32651,0.00041688,30]
[342869053,1732189888469,-200.0,0.00041783,7]
[342869054,1732189888480,-1054.0,0.00041784,30]
[342869055,1732189888490,-1200.0,0.000418,15]
[342869056,1732189888500,-159.278194,0.00041823,120]
[342869057,1732189888510,-2110.0,0.00041869,30]
[342869058,1732189888520,-1200.0,0.000419,15]
[342869059,1732189888532,-4996.41220494,0.000419,120]
[342869060,1732189888542,-4996.41220494,0.000419,120]
[342869061,1732189888551,-4996.41220494,0.000419,120]
[342869062,1732189888561,-4996.41220494,0.000419,120]
[342869063,1732189888571,-2888.49984285,0.000419,120]
[342869064,1732189888586,-2107.91236209,0.000419,120]
[342869065,1732189888596,-4996.41220494,0.000419,120]
[342869066,1732189888605,-871.26489178,0.000419,120]
[342869067,1732189888674,-2831.73789799,0.000419,120]
[342869068,1732189888686,-1293.40941517,0.000419,120]
[342869069,1732189888696,-662.85507683,0.000419,120]
[342869070,1732189889928,-1000.0,0.0004019,2]
[342869071,1732189889943,-4188.9,0.00041095,18]
[342869072,1732189889953,-4188.9,0.00041369,18]
[342869073,1732189889964,-4188.9,0.00041643,18]
[342869074,1732189889974,-1000.0,0.00041677,2]
[342869075,1732189889988,-4333.55712811,0.000419,120]
[342869076,1732189890000,-4996.41220494,0.000419,120]
[342869077,1732189890012,-4996.41220494,0.000419,120]
[342869078,1732189890022,-4996.41220494,0.000419,120]
[342869079,1732189890032,-4996.41220494,0.000419,120]
[342869080,1732189890043,-4996.41220494,0.000419,120]
[342869081,1732189890053,-4996.41220494,0.000419,120]
[342869082,1732189890063,-433.47,0.00041902,30]
[342869083,1732189890074,-150.0,0.00041902,30]
[342869084,1732189890084,-433.47,0.00041902,30]
[342869085,1732189890385,-433.47,0.00041902,30]
[342869086,1732189890394,-150.0,0.00041902,30]
[342869087,1732189890404,-433.47,0.00041902,30]
[342869088,1732189890413,-150.0,0.00041902,30]
[342869089,1732189890424,-433.47,0.00041902,30]
[342869090,1732189890439,-150.0,0.00041902,30]
[342869091,1732189890449,-150.0,0.00041902,30]
[342869092,1732189890458,-150.0,0.00041902,30]
[342869093,1732189890468,-150.0,0.00041902,30]
[342869094,1732189890478,-150.0,0.00041902,30]
[342869095,1732189890487,-150.0,0.00041902,30]
[342869096,1732189890496,-764.41,0.00041902,30]
[342869097,1732189890506,-150.0,0.00041902,30]
[342869098,1732189890515,-764.41,0.00041902,30]
[342869099,1732189890524,-433.33,0.00041902,30]
[342869100,1732189890533,-764.41,0.00041902,30]
[342869101,1732189890543,-764.41,0.00041902,30]
[342869102,1732189890552,-764.41,0.00041902,30]
[342869103,1732189890562,-433.33,0.00041902,30]
[342869104,1732189890571,-764.41,0.00041902,30]
[342869105,1732189890580,-433.33,0.00041902,30]
[342869106,1732189890589,-433.33,0.00041902,30]
[342869107,1732189890598,-433.33,0.00041902,30]
[342869108,1732189890608,-151.0,0.00041902,14]
[342869109,1732189890617,-450.961893,0.00041902,14]
[342869110,1732189890626,-450.9619,0.00041902,14]
[342869111,1732189890637,-912.961485,0.00041902,14]
[342869112,1732189890646,-912.961481,0.00041902,14]
[342869113,1732189890655,-362.18,0.00041903,30]
[342869114,1732189890664,-696.6,0.00041917,18]
[342869115,1732189890674,-500.0,0.00041917,18]
[342869116,1732189890683,-500.0,0.00041917,18]
[342869117,1732189890692,-500.0,0.00041917,18]
[342869118,1732189890701,-500.0,0.00041917,18]
[342869119,1732189890710,-500.0,0.00041917,18]
[342869120,1732189890720,-524.46547303,0.00041917,18]
[342869121,1732189890729,-500.0,0.00041917,18]
[342869122,1732189890738,-500.0,0.00041917,18]
[342869123,1732189890747,-500.0,0.00041917,18]
[342869124,1732189890757,-500.0,0.00041917,18]
[342869125,1732189890766,-500.0,0.00041917,18]
[342869126,1732189890775,-500.0,0.00041917,18]
[342869127,1732189890784,-893.89,0.00041917,18]
[342869128,1732189890793,-500.0,0.00041917,18]
[342869129,1732189890803,-500.0,0.00041917,18]
[342869130,1732189890812,-500.0,0.00041917,18]
[342869131,1732189890820,-500.0,0.00041917,18]
[342869132,1732189890830,-1344.138509,0.00041917,18]
[342869133,1732189890839,-224.156426,0.00041917,18]
[342869134,1732189890849,-154.589909,0.00041917,18]
[342869135,1732189890858,-572.28513716,0.00041917,18]
[342869136,1732189890867,-500.0,0.00041917,18]
[342869137,1732189890876,-500.0,0.00041917,18]
[342869138,1732189890885,-500.0,0.00041917,18]
[342869139,1732189890895,-500.0,0.00041917,18]
[342869140,1732189890904,-500.0,0.00041917,18]
[342869141,1732189890913,-564.08,0.00041917,18]
[342869142,1732189890923,-807.98,0.00041917,18]
[342869143,1732189890936,-500.0,0.00041917,18]
[342869144,1732189890945,-500.0,0.00041917,18]
[342869145,1732189890955,-500.0,0.00041917,18]
[342869146,1732189890965,-957.5,0.00041917,18]
[342869147,1732189890976,-500.0,0.00041917,18]
[342869148,1732189890985,-776.01,0.00041917,18]
[342869149,1732189890994,-723.01,0.00041917,18]
[342869150,1732189891006,-500.0,0.00041917,18]
[342869151,1732189891016,-1227.8,0.00041917,18]
[342869152,1732189891025,-1614.75,0.00041917,18]
[342869153,1732189891035,-500.0,0.00041917,18]
[342869154,1732189891044,-500.0,0.00041917,18]
[342869155,1732189891053,-500.0,0.00041917,18]
[342869156,1732189891062,-1779.08,0.00041917,18]
[342869157,1732189891071,-500.0,0.00041917,18]
[342869158,1732189891080,-500.0,0.00041917,18]
[342869159,1732189891090,-735.36,0.00041917,18]
[342869160,1732189891100,-500.0,0.00041917,18]
[342869161,1732189891109,-500.0,0.00041917,18]
[342869162,1732189891118,-541.82,0.00041917,18]
[342869163,1732189891127,-500.0,0.00041917,18]
[342869164,1732189891136,-1079.56,0.00041917,18]
[342869165,1732189891146,-500.0,0.00041917,18]
[342869166,1732189891155,-723.81,0.00041917,18]
[342869167,1732189891164,-502.99,0.00041917,18]
[342869168,1732189891173,-409.68359644,0.00041917,18]
[342869169,1732189891183,-500.0,0.00041917,18]
[342869170,1732189891192,-500.0,0.00041917,18]
[342869171,1732189891202,-2948.74,0.00041917,18]
[342869172,1732189891211,-500.0,0.00041917,18]
[342869173,1732189891220,-535.23,0.00041917,18]
[342869174,1732189891230,-481.66065559,0.00041917,18]
[342869175,1732189891240,-500.0,0.00041917,18]
[342869176,1732189891250,-566.09,0.00041917,18]
[342869177,1732189891259,-237.91986899,0.00041917,18]
[342869178,1732189891268,-500.0,0.00041917,18]
[342869179,1732189891278,-609.54,0.00041917,18]
[342869180,1732189891287,-1065.06,0.00041917,18]
[342869181,1732189891297,-2810.44,0.00041917,18]
[342869182,1732189891306,-850.0,0.00041917,120]
[342869183,1732189891315,-511.2721576,0.00041917,18]
[342869184,1732189891325,-632.79,0.00041917,18]
[342869185,1732189891334,-702.2,0.00041917,18]
[342869186,1732189891344,-434.5304723,0.00041917,18]
[342869187,1732189891353,-500.0,0.00041917,18]
[342869188,1732189891362,-500.0,0.00041917,18]
[342869189,1732189891372,-2169.86,0.00041917,18]
[342869190,1732189891381,-500.0,0.00041917,18]
[342869191,1732189891391,-500.0,0.00041917,18]
[342869192,1732189891401,-500.0,0.00041917,18]
[342869193,1732189891411,-500.0,0.00041917,18]
[342869194,1732189891420,-500.0,0.00041917,18]
[342869195,1732189891432,-487.68,0.00041917,18]
[342869196,1732189891442,-500.0,0.00041917,18]
[342869197,1732189891451,-924.54,0.00041917,18]
[342869198,1732189891460,-500.0,0.00041917,18]
[342869199,1732189891470,-885.13,0.00041917,18]
[342869200,1732189891479,-500.0,0.00041917,18]
[342869201,1732189891489,-500.0,0.00041917,18]
[342869202,1732189891498,-609.98,0.00041917,18]
[342869203,1732189891508,-613.3,0.00041917,18]
[342869204,1732189891517,-500.0,0.00041917,18]
[342869205,1732189891527,-500.0,0.00041917,18]
[342869206,1732189891536,-500.0,0.00041917,18]
[342869207,1732189891545,-337.73,0.00041917,7]
[342869208,1732189891554,-500.0,0.00041917,18]
[342869209,1732189891564,-730.55,0.00041917,18]
[342869210,1732189891575,-906.13,0.00041917,18]
[342869211,1732189891584,-1513.79,0.00041917,18]
[342869212,1732189891594,-244.63915866,0.00041917,18]
[342869213,1732189891603,-500.0,0.00041917,18]
[342869214,1732189891612,-500.0,0.00041917,18]
[342869215,1732189891622,-500.0,0.00041917,18]
[342869216,1732189891631,-500.0,0.00041917,18]
[342869217,1732189891640,-514.74,0.00041917,18]
[342869218,1732189891649,-1037.26,0.00041917,18]
[342869219,1732189891658,-1033.85,0.00041917,18]
[342869220,1732189891667,-500.0,0.00041917,18]
[342869221,1732189891677,-857.95,0.00041917,18]
[342869222,1732189891686,-733.3,0.00041917,18]
[342869223,1732189891695,-500.0,0.00041917,18]
[342869224,1732189891705,-1707.77,0.00041917,18]
[342869225,1732189891714,-500.0,0.00041917,18]
[342869226,1732189891723,-500.0,0.00041917,18]
[342869227,1732189891733,-680.17,0.00041917,18]
[342869228,1732189891742,-500.0,0.00041917,18]
[342869229,1732189891751,-1204.8,0.00041917,18]
[342869230,1732189891760,-500.0,0.00041917,18]
[342869231,1732189891769,-500.0,0.00041917,18]
[342869232,1732189891779,-583.21,0.00041917,18]
[342869233,1732189891788,-539.71,0.00041917,18]
[342869234,1732189891797,-718.33,0.00041917,18]
[342869235,1732189891806,-799.88,0.00041917,18]
[342869236,1732189891815,-1489.65,0.00041917,18]
[342869237,1732189891824,-1673.07,0.00041917,18]
[342869238,1732189891833,-832.94,0.00041917,18]
[342869239,1732189891843,-500.0,0.00041917,18]
[342869240,1732189891852,-500.0,0.00041917,18]
[342869241,1732189891861,-2000.0,0.00041917,30]
[342869242,1732189891871,-516.81,0.00041917,18]
[342869243,1732189891880,-1463.33,0.00041917,18]
[342869244,1732189891889,-692.4,0.00041917,18]
[342869245,1732189891899,-1056.79,0.00041917,18]
[342869246,1732189891908,-561.17,0.00041917,18]
[342869247,1732189891917,-500.0,0.00041917,18]
[342869248,1732189891928,-500.0,0.00041917,18]
[342869249,1732189891942,-652.07,0.00041917,18]
[342869250,1732189891952,-500.0,0.00041917,18]
[342869251,1732189891961,-500.0,0.00041917,18]
[342869252,1732189891970,-1122.91,0.00041917,18]
[342869253,1732189891981,-556.31,0.00041917,18]
[342869254,1732189891991,-500.0,0.00041917,18]
[342869255,1732189892000,-584.38,0.00041917,18]
[342869256,1732189892010,-500.0,0.00041917,18]
[342869257,1732189892019,-500.0,0.00041917,18]